{"text_format":"1","workbook":"xlsx","n_sheets":3,"sheets":["Blad1","Blad2","printblad"],"not_rendered":{"charts":0,"images":0,"macros":1,"external_links":0,"defined_names":1,"comments":0,"pivot_tables":0},"unopened":[],"bounds":{"document_bytes":16777216,"sheet_cells":100000,"rows_first":2000,"rows_last":500,"rows_between":2000,"halvings":0,"cell_chars":16384,"cell_head_chars":4096},"cells_cut":0,"cells_raw":0,"read":"whole","date_system":"1900"}

{"sheet":"Blad1","index":0,"n_rows":15,"n_cols":9,"rows_kept":15,"cut":false,"hidden":false,"merged":[[5,2,5,8],[2,3,2,4],[3,3,3,4]]}
[]
[]
[null,null,"NAAM"]
[null,null,"KLAS"]
[]
[null,null,"strandactiviteiten"]
[]
[null,null,"activiteiten","vletvaren","bumpervoetbal","strandrugby","strandgolf","suppen op zee","blaaspijp darten"]
[null,null,"minimaal aantal deelnemers",12,null,8,null,12,3]
[null,null,"maximaal aantal deelnemers",24,null,40,null,null,30]
[null,null,"tijdsduur voor deze groep",60,null,90,null,null,60]
[null,null,"tijdsduur geschikt","ja",null,"nee",null,null,"ja"]
[null,null,"zwemdiploma vereist","ja",null,"nee",null,null,"nee"]
[null,null,"leeftijd doelgroep geschikt","ja",null,"ja",null,null,"ja"]
[null,null,"beschikbaar op 13 augustus","ja",null,"nee",null,null,"ja"]

{"sheet":"Blad2","index":1,"n_rows":24,"n_cols":24,"rows_kept":24,"cut":false,"hidden":true,"merged":[[2,3,2,4],[3,3,3,4],[5,2,5,8],[18,2,18,4]]}
[null,null,null,null,null,null,null,null,null,null,null,null,null,null,null,null,null,null,null,null,null,null,null,"maak keuze"]
[null,null,null,null,null,null,null,null,null,null,null,null,null,null,null,null,null,null,null,null,null,null,null,"bananenrace"]
[null,null,"Kandidaatnaam:",{"$f":"Blad1!D3","v":0},null,null,null,null,null,null,null,null,null,null,null,null,null,null,null,null,null,null,null,"botsvoetbal"]
[null,null,"Kandidaatnummer:",{"$f":"Blad1!D4","v":0},null,null,null,null,null,null,null,null,null,null,null,null,null,null,null,null,null,null,null,"flag-football"]
[null,null,null,null,null,null,null,null,null,null,null,null,null,null,null,null,null,null,null,null,null,null,null,"knotshockey"]
[null,null,"strandactiviteiten",null,null,null,null,null,null,null,null,null,null,null,null,null,null,null,null,null,null,null,null,"strandgolf"]
[null,null,null,null,null,null,null,null,null,null,null,null,null,null,null,null,null,null,null,null,null,null,null,"zandkasteel"]
[null,null,"activiteiten","bananenrace","botsvoetbal","flag-football","knotshockey","mega-suppen","zandkasteel"]
[null,null,"minimaal aantal deelnemers",12,18,8,8,12,3]
[null,null,"maximaal aantal deelnemers",24,40,40,40,24,30]
[null,null,"tijdsduur voor deze groep",60,50,90,60,40,60]
[null,null,"tijdsduur geschikt","ja","ja","nee","ja","ja","ja"]
[null,null,"zwemdiploma vereist","ja","nee","nee","nee","ja","nee"]
[null,null,"leeftijd doelgroep geschikt","ja","ja","ja","ja","ja","ja"]
[null,null,"beschikbaar op 14 augustus","ja","ja","nee","ja","ja","ja"]
[]
[]
[]
[null,null,"geschikte activiteiten"]
[]
[null,null,null,"activiteit 1","activiteit 2"]
[null,null,"combinatie 1","maak keuze","maak keuze"]
[null,null,"combinatie 2","maak keuze","maak keuze"]
[null,null,"combinatie 3","maak keuze","maak keuze"]

{"sheet":"printblad","index":2,"n_rows":24,"n_cols":9,"rows_kept":24,"cut":false,"hidden":true,"merged":[[5,2,5,8],[2,3,2,4],[3,3,3,4],[18,2,18,4]]}
[]
[]
[null,null,{"$f":"Blad1!C3","v":"NAAM"},{"$f":"Blad1!D3","v":0}]
[null,null,{"$f":"Blad1!C4","v":"KLAS"},{"$f":"Blad1!D4","v":0}]
[]
[null,null,{"$f":"Blad1!C6","v":"strandactiviteiten"}]
[]
[null,null,{"$f":"Blad1!C8","v":"activiteiten"},{"$f":"Blad1!D8","v":"vletvaren"},{"$f":"Blad1!E8","v":"bumpervoetbal"},{"$f":"Blad1!F8","v":"strandrugby"},{"$f":"Blad1!G8","v":"strandgolf"},{"$f":"Blad1!H8","v":"suppen op zee"},{"$f":"Blad1!I8","v":"blaaspijp darten"}]
[null,null,{"$f":"Blad1!C9","v":"minimaal aantal deelnemers"},{"$f":"Blad1!D9","v":12},{"$f":"Blad1!E9","v":0},{"$f":"Blad1!F9","v":8},{"$f":"Blad1!G9","v":0},{"$f":"Blad1!H9","v":12},{"$f":"Blad1!I9","v":3}]
[null,null,{"$f":"Blad1!C10","v":"maximaal aantal deelnemers"},{"$f":"Blad1!D10","v":24},{"$f":"Blad1!E10","v":0},{"$f":"Blad1!F10","v":40},{"$f":"Blad1!G10","v":0},{"$f":"Blad1!H10","v":0},{"$f":"Blad1!I10","v":30}]
[null,null,{"$f":"Blad1!C11","v":"tijdsduur voor deze groep"},{"$f":"Blad1!D11","v":60},{"$f":"Blad1!E11","v":0},{"$f":"Blad1!F11","v":90},{"$f":"Blad1!G11","v":0},{"$f":"Blad1!H11","v":0},{"$f":"Blad1!I11","v":60}]
[null,null,{"$f":"Blad1!C12","v":"tijdsduur geschikt"},{"$f":"Blad1!D12","v":"ja"},{"$f":"Blad1!E12","v":0},{"$f":"Blad1!F12","v":"nee"},{"$f":"Blad1!G12","v":0},{"$f":"Blad1!H12","v":0},{"$f":"Blad1!I12","v":"ja"}]
[null,null,{"$f":"Blad1!C13","v":"zwemdiploma vereist"},{"$f":"Blad1!D13","v":"ja"},{"$f":"Blad1!E13","v":0},{"$f":"Blad1!F13","v":"nee"},{"$f":"Blad1!G13","v":0},{"$f":"Blad1!H13","v":0},{"$f":"Blad1!I13","v":"nee"}]
[null,null,{"$f":"Blad1!C14","v":"leeftijd doelgroep geschikt"},{"$f":"Blad1!D14","v":"ja"},{"$f":"Blad1!E14","v":0},{"$f":"Blad1!F14","v":"ja"},{"$f":"Blad1!G14","v":0},{"$f":"Blad1!H14","v":0},{"$f":"Blad1!I14","v":"ja"}]
[null,null,{"$f":"Blad1!C15","v":"beschikbaar op 13 augustus"},{"$f":"Blad1!D15","v":"ja"},{"$f":"Blad1!E15","v":0},{"$f":"Blad1!F15","v":"nee"},{"$f":"Blad1!G15","v":0},{"$f":"Blad1!H15","v":0},{"$f":"Blad1!I15","v":"ja"}]
[]
[]
[]
[null,null,{"$f":"Blad2!C19","v":"geschikte activiteiten"}]
[]
[null,null,null,{"$f":"Blad2!D21","v":"activiteit 1"},{"$f":"Blad2!E21","v":"activiteit 2"}]
[null,null,{"$f":"Blad2!C22","v":"combinatie 1"},{"$f":"Blad2!D22","v":"maak keuze"},{"$f":"Blad2!E22","v":"maak keuze"}]
[null,null,{"$f":"Blad2!C23","v":"combinatie 2"},{"$f":"Blad2!D23","v":"maak keuze"},{"$f":"Blad2!E23","v":"maak keuze"}]
[null,null,{"$f":"Blad2!C24","v":"combinatie 3"},{"$f":"Blad2!D24","v":"maak keuze"},{"$f":"Blad2!E24","v":"maak keuze"}]